[Event "Titled Tuesday Blitz November 15 Late 2022"]
[White "Wieczorek, Oskar"]
[Black "Indjic, Aleksandar"]
[WhiteFideId "1133950"]
[BlackFideId "911925"]
[WhiteElo "2404"]
[BlackElo "2592"]
[Result "0-1"]
[Round "03"]
[TimeControl "180+1"]
[Date "2022.11.15"]
[WhiteClock "0:00:15"]
[BlackClock "0:00:36"]

1. e4 {[%clk 0:02:58]}  e5 {[%clk 0:02:58]} 2. Nf3 {[%clk 0:02:58]}  Nc6 {[%clk 0:02:58]} 3. Nc3 {[%clk 0:02:59]}  Nf6 {[%clk 0:02:58]} 4. h3 {[%clk 0:02:59]}  Bb4 {[%clk 0:02:53]} 5. Nd5 {[%clk 0:02:59]}  O-O {[%clk 0:02:50]} 6. Nxb4 {[%clk 0:02:51]}  Nxb4 {[%clk 0:02:49]} 7. c3 {[%clk 0:02:52]}  Nc6 {[%clk 0:02:48]} 8. d3 {[%clk 0:02:52]}  d5 {[%clk 0:02:43]} 9. Qc2 {[%clk 0:02:53]}  h6 {[%clk 0:02:28]} 10. Be2 {[%clk 0:02:53]}  a5 {[%clk 0:02:27]} 11. O-O {[%clk 0:02:53]}  Re8 {[%clk 0:02:28]} 12. Re1 {[%clk 0:02:50]}  b6 {[%clk 0:02:28]} 13. Bf1 {[%clk 0:02:40]}  Ba6 {[%clk 0:02:28]} 14. a3 {[%clk 0:02:18]}  Qd7 {[%clk 0:02:23]} 15. Bd2 {[%clk 0:02:03]}  dxe4 {[%clk 0:02:22]} 16. dxe4 {[%clk 0:02:04]}  Bxf1 {[%clk 0:02:21]} 17. Rxf1 {[%clk 0:01:51]}  a4 {[%clk 0:02:22]} 18. Rfd1 {[%clk 0:01:51]}  Qe6 {[%clk 0:02:22]} 19. c4 {[%clk 0:01:46]}  Na5 {[%clk 0:02:05]} 20. Qxa4 {[%clk 0:01:23]}  Nxc4 {[%clk 0:02:04]} 21. Qc2 {[%clk 0:01:23]}  c5 {[%clk 0:02:02]} 22. Bc3 {[%clk 0:01:21]}  Qc6 {[%clk 0:01:52]} 23. b3 {[%clk 0:01:03]}  Qxe4 {[%clk 0:01:42]} 24. Qc1 {[%clk 0:00:50]}  Na5 {[%clk 0:01:42]} 25. Qb2 {[%clk 0:00:46]}  Nc6 {[%clk 0:01:38]} 26. Re1 {[%clk 0:00:46]}  Qd5 {[%clk 0:01:33]} 27. Nxe5 {[%clk 0:00:45]}  Nd4 {[%clk 0:01:22]} 28. Bxd4 {[%clk 0:00:40]}  cxd4 {[%clk 0:01:19]} 29. Nd3 {[%clk 0:00:41]}  Ne4 {[%clk 0:01:17]} 30. Nb4 {[%clk 0:00:41]}  Qc5 {[%clk 0:01:03]} 31. Qe2 {[%clk 0:00:19]}  Re6 {[%clk 0:00:43]} 32. Qd3 {[%clk 0:00:19]}  Rae8 {[%clk 0:00:39]} 33. Rac1 {[%clk 0:00:18]}  Nc3 {[%clk 0:00:38]} 34. Rxe6 {[%clk 0:00:18]}  Rxe6 {[%clk 0:00:38]} 35. Na2 {[%clk 0:00:15]}  Ne2+ {[%clk 0:00:37]} 36. Qxe2 {[%clk 0:00:15]}  Rxe2 {[%clk 0:00:36]} 0-1


[Site "https://www.chess.com"]

[Event "Titled Tuesday Blitz November 15 Late 2022"]
[White "Winterberg, Lukas"]
[Black "Player, Edmund C"]
[WhiteFideId "24622702"]
[BlackFideId "406520"]
[WhiteElo "2349"]
[BlackElo "2103"]
[Result "1-0"]
[Round "03"]
[TimeControl "180+1"]
[Date "2022.11.16"]
[WhiteClock "0:01:44"]
[BlackClock "0:01:44"]

1. e4 {[%clk 0:02:57]}  e5 {[%clk 0:02:59]} 2. Nf3 {[%clk 0:02:54]}  Nc6 {[%clk 0:02:58]} 3. d4 {[%clk 0:02:53]}  exd4 {[%clk 0:02:54]} 4. Bc4 {[%clk 0:02:53]}  Nf6 {[%clk 0:02:35]} 5. e5 {[%clk 0:02:52]}  d5 {[%clk 0:02:30]} 6. Bb5 {[%clk 0:02:50]}  Ne4 {[%clk 0:02:28]} 7. Nxd4 {[%clk 0:02:48]}  Bd7 {[%clk 0:02:27]} 8. Bxc6 {[%clk 0:02:47]}  bxc6 {[%clk 0:02:26]} 9. O-O {[%clk 0:02:48]}  Be7 {[%clk 0:02:24]} 10. f3 {[%clk 0:02:47]}  Ng5 {[%clk 0:02:22]} 11. f4 {[%clk 0:02:45]}  Ne4 {[%clk 0:02:21]} 12. Nd2 {[%clk 0:02:45]}  Nxd2 {[%clk 0:02:19]} 13. Bxd2 {[%clk 0:02:45]}  c5 {[%clk 0:02:17]} 14. Ne2 {[%clk 0:02:32]}  d4 {[%clk 0:02:12]} 15. Ng3 {[%clk 0:02:32]}  O-O {[%clk 0:02:09]} 16. f5 {[%clk 0:02:30]}  Bg5 {[%clk 0:02:04]} 17. Ne4 {[%clk 0:02:15]}  Bxd2 {[%clk 0:01:57]} 18. Qxd2 {[%clk 0:02:16]}  Qe7 {[%clk 0:01:57]} 19. Rae1 {[%clk 0:01:45]}  Qxe5 {[%clk 0:01:55]} 20. f6 {[%clk 0:01:45]}  g6 {[%clk 0:01:44]} 21. Qh6 {[%clk 0:01:44]} 1-0


[Site "https://www.chess.com"]

[Event "Titled Tuesday Blitz November 15 Late 2022"]
[White "Young, Ryan"]
[Black "Poliakova, Varvara"]
[WhiteFideId "2049945"]
[BlackFideId "13518313"]
[WhiteElo "2295"]
[BlackElo "2099"]
[Result "0-1"]
[Round "03"]
[TimeControl "180+1"]
[Date "2022.11.16"]
[WhiteClock "0:00:33"]
[BlackClock "0:02:11"]

1. e4 {[%clk 0:03:00]}  e5 {[%clk 0:02:57]} 2. Nf3 {[%clk 0:03:00]}  Nc6 {[%clk 0:02:58]} 3. d4 {[%clk 0:03:00]}  exd4 {[%clk 0:02:58]} 4. Nxd4 {[%clk 0:03:00]}  Nf6 {[%clk 0:02:58]} 5. Nxc6 {[%clk 0:03:00]}  bxc6 {[%clk 0:02:57]} 6. e5 {[%clk 0:03:01]}  Qe7 {[%clk 0:02:57]} 7. Qe2 {[%clk 0:03:02]}  Nd5 {[%clk 0:02:57]} 8. Nd2 {[%clk 0:03:02]}  g6 {[%clk 0:02:53]} 9. c4 {[%clk 0:02:49]}  Nb6 {[%clk 0:02:51]} 10. Ne4 {[%clk 0:02:49]}  Bg7 {[%clk 0:02:50]} 11. Bg5 {[%clk 0:02:23]}  Qb4+ {[%clk 0:02:43]} 12. Kd1 {[%clk 0:02:12]}  O-O {[%clk 0:02:33]} 13. Nf6+ {[%clk 0:02:02]}  Bxf6 {[%clk 0:02:30]} 14. Bxf6 {[%clk 0:02:00]}  Na4 {[%clk 0:02:27]} 15. Qe3 {[%clk 0:01:09]}  Nxb2+ {[%clk 0:02:23]} 16. Kc2 {[%clk 0:01:03]}  Nxc4 {[%clk 0:02:21]} 17. Qh6 {[%clk 0:00:56]}  Qb2+ {[%clk 0:02:17]} 18. Kd3 {[%clk 0:00:56]}  Nxe5+ {[%clk 0:02:15]} 19. Ke4 {[%clk 0:00:40]}  d5+ {[%clk 0:02:13]} 20. Kf4 {[%clk 0:00:33]}  Qd2+ {[%clk 0:02:11]} 0-1


[Site "https://www.chess.com"]

[Event "Titled Tuesday Blitz November 15 Late 2022"]
[White "Yuan, Qingyu"]
[Black "Sivakumar, Shaaketh"]
[WhiteFideId "8609772"]
[BlackFideId "30940176"]
[WhiteElo "2359"]
[BlackElo "2174"]
[Result "1-0"]
[Round "03"]
[TimeControl "180+1"]
[Date "2022.11.16"]
[WhiteClock "0:00:26"]
[BlackClock "0:00:43"]

1. e4 {[%clk 0:03:00]}  e6 {[%clk 0:02:05]} 2. d4 {[%clk 0:02:58]}  d5 {[%clk 0:02:05]} 3. e5 {[%clk 0:02:58]}  c5 {[%clk 0:02:04]} 4. c3 {[%clk 0:02:59]}  Nc6 {[%clk 0:02:05]} 5. Nf3 {[%clk 0:02:59]}  Qb6 {[%clk 0:02:05]} 6. Bd3 {[%clk 0:02:59]}  c4 {[%clk 0:02:05]} 7. Bc2 {[%clk 0:02:58]}  Bd7 {[%clk 0:02:04]} 8. Ng5 {[%clk 0:02:43]}  Be7 {[%clk 0:01:56]} 9. Nxh7 {[%clk 0:02:33]}  g6 {[%clk 0:01:49]} 10. Ng5 {[%clk 0:02:31]}  Rh5 {[%clk 0:01:50]} 11. Nf3 {[%clk 0:02:07]}  O-O-O {[%clk 0:01:45]} 12. Nbd2 {[%clk 0:02:07]}  f5 {[%clk 0:01:42]} 13. Nf1 {[%clk 0:02:01]}  Rh7 {[%clk 0:01:30]} 14. Rb1 {[%clk 0:01:53]}  Qa6 {[%clk 0:01:28]} 15. b3 {[%clk 0:01:43]}  Nh6 {[%clk 0:01:27]} 16. Ng5 {[%clk 0:01:40]}  Nf7 {[%clk 0:01:25]} 17. Nxh7 {[%clk 0:01:40]}  cxb3 {[%clk 0:01:23]} 18. axb3 {[%clk 0:01:38]}  Ncxe5 {[%clk 0:01:22]} 19. dxe5 {[%clk 0:01:36]}  Nxe5 {[%clk 0:01:23]} 20. Qe2 {[%clk 0:01:37]}  Qd6 {[%clk 0:01:20]} 21. Bf4 {[%clk 0:01:32]}  Nd3+ {[%clk 0:01:18]} 22. Bxd3 {[%clk 0:01:30]}  Qxf4 {[%clk 0:01:18]} 23. Qe3 {[%clk 0:01:19]}  Qh4 {[%clk 0:01:17]} 24. Qxa7 {[%clk 0:01:15]}  Qxh7 {[%clk 0:01:16]} 25. Nd2 {[%clk 0:01:10]}  Qg7 {[%clk 0:01:08]} 26. Qa8+ {[%clk 0:01:05]}  Kc7 {[%clk 0:01:08]} 27. Qa5+ {[%clk 0:01:05]}  b6 {[%clk 0:01:03]} 28. Qa7+ {[%clk 0:01:05]}  Kc6 {[%clk 0:01:03]} 29. Nf3 {[%clk 0:01:00]}  Qxc3+ {[%clk 0:01:03]} 30. Ke2 {[%clk 0:01:00]}  Qb4 {[%clk 0:00:56]} 31. Ne5+ {[%clk 0:00:47]}  Kd6 {[%clk 0:00:54]} 32. Nf7+ {[%clk 0:00:46]}  Kc5 {[%clk 0:00:55]} 33. Rhc1+ {[%clk 0:00:43]}  Kd4 {[%clk 0:00:55]} 34. Nxd8 {[%clk 0:00:43]}  Bg5 {[%clk 0:00:51]} 35. Rd1 {[%clk 0:00:31]}  Kc3 {[%clk 0:00:45]} 36. Qc7+ {[%clk 0:00:27]}  Qc5 {[%clk 0:00:43]} 37. Rbc1+ {[%clk 0:00:26]} 1-0


[Site "https://www.chess.com"]

[Event "Titled Tuesday Blitz November 15 Late 2022"]
[White "Yurovskykh, Oleksandr"]
[Black "Grigorov, Grigor"]
[WhiteFideId "14134020"]
[BlackFideId "2907313"]
[WhiteElo "2265"]
[BlackElo "2510"]
[Result "0-1"]
[Round "03"]
[TimeControl "180+1"]
[Date "2022.11.15"]
[WhiteClock "0:00:07"]
[BlackClock "0:00:05"]

1. d4 {[%clk 0:02:56]}  Nf6 {[%clk 0:02:26]} 2. Nf3 {[%clk 0:02:53]}  e6 {[%clk 0:02:25]} 3. Bf4 {[%clk 0:02:53]}  c5 {[%clk 0:02:24]} 4. c3 {[%clk 0:02:50]}  cxd4 {[%clk 0:02:20]} 5. cxd4 {[%clk 0:02:51]}  Bb4+ {[%clk 0:02:20]} 6. Nbd2 {[%clk 0:02:50]}  O-O {[%clk 0:02:18]} 7. e3 {[%clk 0:02:50]}  Nc6 {[%clk 0:02:14]} 8. a3 {[%clk 0:02:50]}  Be7 {[%clk 0:02:14]} 9. h3 {[%clk 0:02:48]}  b6 {[%clk 0:02:11]} 10. Bd3 {[%clk 0:02:47]}  Bb7 {[%clk 0:02:11]} 11. O-O {[%clk 0:02:46]}  Nd5 {[%clk 0:02:10]} 12. Bh2 {[%clk 0:02:46]}  f5 {[%clk 0:02:10]} 13. Rc1 {[%clk 0:02:43]}  Rc8 {[%clk 0:02:03]} 14. Qe2 {[%clk 0:02:40]}  Qe8 {[%clk 0:01:22]} 15. Ba6 {[%clk 0:02:33]}  Bxa6 {[%clk 0:01:21]} 16. Qxa6 {[%clk 0:02:34]}  Qg6 {[%clk 0:01:14]} 17. Qe2 {[%clk 0:02:27]}  Qh5 {[%clk 0:01:06]} 18. Qd3 {[%clk 0:02:13]}  g5 {[%clk 0:01:02]} 19. Ne5 {[%clk 0:02:06]}  Nxe5 {[%clk 0:01:02]} 20. Bxe5 {[%clk 0:02:07]}  g4 {[%clk 0:01:00]} 21. hxg4 {[%clk 0:02:03]}  Qxg4 {[%clk 0:00:59]} 22. Rxc8 {[%clk 0:01:54]}  Rxc8 {[%clk 0:00:59]} 23. f3 {[%clk 0:01:55]}  Qg5 {[%clk 0:00:57]} 24. Re1 {[%clk 0:01:41]}  Kf7 {[%clk 0:00:53]} 25. e4 {[%clk 0:01:39]}  Nf4 {[%clk 0:00:52]} 26. Bxf4 {[%clk 0:01:35]}  Qxf4 {[%clk 0:00:53]} 27. Nf1 {[%clk 0:01:26]}  Bf6 {[%clk 0:00:45]} 28. d5 {[%clk 0:01:18]}  Rc7 {[%clk 0:00:38]} 29. g3 {[%clk 0:01:15]}  fxe4 {[%clk 0:00:32]} 30. Rxe4 {[%clk 0:01:07]}  Qg5 {[%clk 0:00:30]} 31. dxe6+ {[%clk 0:01:06]}  dxe6 {[%clk 0:00:30]} 32. Kg2 {[%clk 0:00:50]}  Qd5 {[%clk 0:00:27]} 33. Qxd5 {[%clk 0:00:44]}  exd5 {[%clk 0:00:28]} 34. Re2 {[%clk 0:00:45]}  d4 {[%clk 0:00:23]} 35. Rd2 {[%clk 0:00:37]}  Ke6 {[%clk 0:00:22]} 36. Nh2 {[%clk 0:00:37]}  h5 {[%clk 0:00:20]} 37. f4 {[%clk 0:00:37]}  Kd5 {[%clk 0:00:18]} 38. Nf3 {[%clk 0:00:37]}  Ke4 {[%clk 0:00:15]} 39. Kf2 {[%clk 0:00:36]}  d3 {[%clk 0:00:15]} 40. Ne1 {[%clk 0:00:22]}  Rd7 {[%clk 0:00:10]} 41. Nf3 {[%clk 0:00:18]}  a5 {[%clk 0:00:06]} 42. Ne1 {[%clk 0:00:18]}  Bd4+ {[%clk 0:00:06]} 43. Kf1 {[%clk 0:00:18]}  Be3 {[%clk 0:00:06]} 44. Rd1 {[%clk 0:00:18]}  d2 {[%clk 0:00:06]} 45. Ng2 {[%clk 0:00:07]}  Kf3 {[%clk 0:00:06]} 46. Nh4+ {[%clk 0:00:06]}  Kxg3 {[%clk 0:00:06]} 47. Nf5+ {[%clk 0:00:06]}  Kxf4 {[%clk 0:00:06]} 48. Ke2 {[%clk 0:00:04]}  Kxf5 {[%clk 0:00:06]} 49. Kxe3 {[%clk 0:00:05]}  h4 {[%clk 0:00:06]} 50. Ke2 {[%clk 0:00:05]}  h3 {[%clk 0:00:05]} 51. Rf1+ {[%clk 0:00:06]}  Kg4 {[%clk 0:00:05]} 52. Kd1 {[%clk 0:00:07]}  h2 {[%clk 0:00:05]} 0-1


[Site "https://www.chess.com"]

[Event "Titled Tuesday Blitz November 15 Late 2022"]
[White "Zhalmakhanov, Ramazan"]
[Black "Bogaudinov, Rushan"]
[WhiteFideId "13706357"]
[BlackFideId "4129288"]
[WhiteElo "2405"]
[BlackElo "1997"]
[Result "1-0"]
[Round "03"]
[TimeControl "180+1"]
[Date "2022.11.16"]
[WhiteClock "0:00:19"]
[BlackClock "0:00:39"]

1. e4 {[%clk 0:02:55]}  c5 {[%clk 0:02:58]} 2. Nc3 {[%clk 0:02:55]}  Nc6 {[%clk 0:02:56]} 3. Bb5 {[%clk 0:02:55]}  Nd4 {[%clk 0:02:56]} 4. Nf3 {[%clk 0:02:55]}  Nxb5 {[%clk 0:02:55]} 5. Nxb5 {[%clk 0:02:56]}  a6 {[%clk 0:02:55]} 6. Nc3 {[%clk 0:02:56]}  e6 {[%clk 0:02:55]} 7. d4 {[%clk 0:02:56]}  cxd4 {[%clk 0:02:55]} 8. Qxd4 {[%clk 0:02:57]}  Ne7 {[%clk 0:02:41]} 9. Bf4 {[%clk 0:02:35]}  Nc6 {[%clk 0:02:40]} 10. Qd2 {[%clk 0:02:34]}  Bb4 {[%clk 0:02:24]} 11. a3 {[%clk 0:02:15]}  Be7 {[%clk 0:02:20]} 12. O-O-O {[%clk 0:02:11]}  b5 {[%clk 0:02:20]} 13. Bd6 {[%clk 0:02:08]}  O-O {[%clk 0:02:15]} 14. Rhe1 {[%clk 0:01:52]}  Qa5 {[%clk 0:01:49]} 15. Bxe7 {[%clk 0:01:49]}  Nxe7 {[%clk 0:01:48]} 16. Qd6 {[%clk 0:01:39]}  Nc6 {[%clk 0:01:38]} 17. Nd4 {[%clk 0:01:39]}  b4 {[%clk 0:00:57]} 18. Nxc6 {[%clk 0:01:27]}  dxc6 {[%clk 0:00:58]} 19. axb4 {[%clk 0:01:13]}  Qg5+ {[%clk 0:00:57]} 20. f4 {[%clk 0:01:13]}  Qxg2 {[%clk 0:00:54]} 21. Qe7 {[%clk 0:00:30]}  Qxh2 {[%clk 0:00:43]} 22. Rd8 {[%clk 0:00:24]}  Bb7 {[%clk 0:00:39]} 23. Qxf8# {[%clk 0:00:19]} 1-0


[Site "https://www.chess.com"]

[Event "Titled Tuesday Blitz November 15 Late 2022"]
[White "Zhigalko, Sergei"]
[Black "Naroditsky, Daniel"]
[WhiteFideId "13502956"]
[BlackFideId "2026961"]
[WhiteElo "2662"]
[BlackElo "2628"]
[Result "1/2-1/2"]
[Round "03"]
[TimeControl "180+1"]
[Date "2022.11.15"]
[WhiteClock "0:00:10"]
[BlackClock "0:00:42"]

1. e4 {[%clk 0:03:00]}  Nc6 {[%clk 0:02:59]} 2. Nf3 {[%clk 0:03:00]}  d6 {[%clk 0:02:56]} 3. d4 {[%clk 0:03:01]}  Nf6 {[%clk 0:02:57]} 4. Nc3 {[%clk 0:03:00]}  g6 {[%clk 0:02:56]} 5. Bb5 {[%clk 0:03:00]}  a6 {[%clk 0:02:56]} 6. Bxc6+ {[%clk 0:02:59]}  bxc6 {[%clk 0:02:56]} 7. O-O {[%clk 0:02:56]}  Bg7 {[%clk 0:02:52]} 8. Re1 {[%clk 0:02:53]}  O-O {[%clk 0:02:52]} 9. h3 {[%clk 0:02:54]}  Nd7 {[%clk 0:02:50]} 10. e5 {[%clk 0:02:50]}  Nb6 {[%clk 0:02:24]} 11. Bg5 {[%clk 0:02:40]}  f6 {[%clk 0:02:18]} 12. Bh4 {[%clk 0:02:38]}  Bb7 {[%clk 0:02:12]} 13. Qe2 {[%clk 0:02:37]}  Qd7 {[%clk 0:02:10]} 14. Rad1 {[%clk 0:02:36]}  a5 {[%clk 0:02:10]} 15. a4 {[%clk 0:02:22]}  fxe5 {[%clk 0:02:10]} 16. dxe5 {[%clk 0:02:18]}  c5 {[%clk 0:02:11]} 17. Ne4 {[%clk 0:01:55]}  Nd5 {[%clk 0:01:47]} 18. b3 {[%clk 0:01:25]}  Kh8 {[%clk 0:01:39]} 19. c4 {[%clk 0:01:20]}  Nf4 {[%clk 0:01:38]} 20. Qe3 {[%clk 0:01:20]}  Qe8 {[%clk 0:01:03]} 21. Bg5 {[%clk 0:01:10]}  Qf7 {[%clk 0:00:52]} 22. Bxf4 {[%clk 0:00:43]}  Qxf4 {[%clk 0:00:53]} 23. Qxf4 {[%clk 0:00:35]}  Rxf4 {[%clk 0:00:54]} 24. Neg5 {[%clk 0:00:36]}  Bxf3 {[%clk 0:00:53]} 25. Nxf3 {[%clk 0:00:36]}  Kg8 {[%clk 0:00:48]} 26. exd6 {[%clk 0:00:25]}  exd6 {[%clk 0:00:49]} 27. Re7 {[%clk 0:00:25]}  Rf7 {[%clk 0:00:50]} 28. Rde1 {[%clk 0:00:25]}  Bf6 {[%clk 0:00:45]} 29. Re8+ {[%clk 0:00:22]}  Rf8 {[%clk 0:00:46]} 30. Rxf8+ {[%clk 0:00:17]}  Kxf8 {[%clk 0:00:46]} 31. Re3 {[%clk 0:00:17]}  Rb8 {[%clk 0:00:46]} 32. Kf1 {[%clk 0:00:17]}  c6 {[%clk 0:00:44]} 33. Ke2 {[%clk 0:00:17]}  Kf7 {[%clk 0:00:44]} 34. Kd2 {[%clk 0:00:09]}  d5 {[%clk 0:00:44]} 35. Ne5+ {[%clk 0:00:08]}  Bxe5 {[%clk 0:00:39]} 36. Rxe5 {[%clk 0:00:09]}  Kf6 {[%clk 0:00:34]} 37. f4 {[%clk 0:00:07]}  Rxb3 {[%clk 0:00:35]} 38. cxd5 {[%clk 0:00:08]}  cxd5 {[%clk 0:00:36]} 39. Rxd5 {[%clk 0:00:08]}  Rb2+ {[%clk 0:00:36]} 40. Ke3 {[%clk 0:00:07]}  Rxg2 {[%clk 0:00:37]} 41. Rxc5 {[%clk 0:00:07]}  Rg3+ {[%clk 0:00:37]} 42. Ke4 {[%clk 0:00:07]}  Rxh3 {[%clk 0:00:38]} 43. Rxa5 {[%clk 0:00:07]}  Ra3 {[%clk 0:00:39]} 44. Ra6+ {[%clk 0:00:07]}  Kg7 {[%clk 0:00:39]} 45. Ra7+ {[%clk 0:00:07]}  Kf6 {[%clk 0:00:40]} 46. Rxh7 {[%clk 0:00:06]}  Rxa4+ {[%clk 0:00:40]} 47. Kf3 {[%clk 0:00:07]}  g5 {[%clk 0:00:41]} 48. fxg5+ {[%clk 0:00:07]}  Kxg5 {[%clk 0:00:41]} 49. Rb7 {[%clk 0:00:07]}  Rf4+ {[%clk 0:00:41]} 50. Ke3 {[%clk 0:00:08]}  Rf5 {[%clk 0:00:42]} 51. Rb3 {[%clk 0:00:08]}  Kg4 {[%clk 0:00:41]} 52. Rd3 {[%clk 0:00:08]}  Rf3+ {[%clk 0:00:41]} 53. Kd2 {[%clk 0:00:09]}  Rxd3+ {[%clk 0:00:42]} 54. Kxd3 {[%clk 0:00:10]} 1/2-1/2


[Site "https://www.chess.com"]

[Event "Titled Tuesday Blitz November 15 Late 2022"]
[White "chess50years"]
[Black "Vujic, Mihailo"]
[BlackFideId "918873"]
[WhiteElo "2134"]
[BlackElo "2256"]
[Result "0-1"]
[Round "03"]
[TimeControl "180+1"]
[Date "2022.11.16"]
[WhiteClock "0:00:04"]
[BlackClock "0:00:20"]

1. c4 {[%clk 0:03:00]}  e5 {[%clk 0:02:58]} 2. g3 {[%clk 0:02:59]}  Nc6 {[%clk 0:02:59]} 3. Bg2 {[%clk 0:02:58]}  Nf6 {[%clk 0:03:00]} 4. Nc3 {[%clk 0:02:57]}  Bc5 {[%clk 0:03:00]} 5. e3 {[%clk 0:02:56]}  d5 {[%clk 0:02:59]} 6. cxd5 {[%clk 0:02:55]}  Nb4 {[%clk 0:02:59]} 7. d3 {[%clk 0:02:42]}  Nbxd5 {[%clk 0:02:58]} 8. a3 {[%clk 0:02:41]}  Bb6 {[%clk 0:02:52]} 9. Nf3 {[%clk 0:02:38]}  Nxc3 {[%clk 0:02:40]} 10. bxc3 {[%clk 0:02:37]}  Qe7 {[%clk 0:02:41]} 11. Nd2 {[%clk 0:02:22]}  O-O {[%clk 0:02:39]} 12. O-O {[%clk 0:02:20]}  c6 {[%clk 0:02:37]} 13. a4 {[%clk 0:02:18]}  Bf5 {[%clk 0:02:34]} 14. d4 {[%clk 0:02:12]}  e4 {[%clk 0:02:33]} 15. Ba3 {[%clk 0:02:08]}  c5 {[%clk 0:02:31]} 16. Nc4 {[%clk 0:02:01]}  Rad8 {[%clk 0:02:28]} 17. a5 {[%clk 0:01:59]}  Bc7 {[%clk 0:02:22]} 18. Bxc5 {[%clk 0:01:55]}  Qe6 {[%clk 0:02:20]} 19. Bxf8 {[%clk 0:01:54]}  Qxc4 {[%clk 0:02:19]} 20. Bb4 {[%clk 0:01:50]}  Bg4 {[%clk 0:02:16]} 21. Qb1 {[%clk 0:01:33]}  Bf3 {[%clk 0:02:13]} 22. Qa2 {[%clk 0:01:27]}  Qc6 {[%clk 0:02:10]} 23. Be7 {[%clk 0:01:23]}  Rd5 {[%clk 0:02:07]} 24. Bxf6 {[%clk 0:01:20]}  Bxg2 {[%clk 0:02:05]} 25. Kxg2 {[%clk 0:01:13]}  gxf6 {[%clk 0:02:06]} 26. Qe2 {[%clk 0:01:09]}  h5 {[%clk 0:02:00]} 27. f3 {[%clk 0:01:07]}  exf3+ {[%clk 0:01:58]} 28. Rxf3 {[%clk 0:01:08]}  h4 {[%clk 0:01:54]} 29. Raf1 {[%clk 0:01:05]}  h3+ {[%clk 0:01:53]} 30. Kh1 {[%clk 0:01:04]}  Bxa5 {[%clk 0:01:50]} 31. Rxf6 {[%clk 0:00:57]}  Rd6+ {[%clk 0:01:38]} 32. R6f3 {[%clk 0:00:55]}  Qxc3 {[%clk 0:01:35]} 33. Rxf7 {[%clk 0:00:49]}  Qc6+ {[%clk 0:01:33]} 34. Qf3 {[%clk 0:00:45]}  Qxf3+ {[%clk 0:01:31]} 35. R7xf3 {[%clk 0:00:46]}  Rd7 {[%clk 0:01:25]} 36. Kg1 {[%clk 0:00:45]}  b5 {[%clk 0:01:24]} 37. Rb1 {[%clk 0:00:43]}  b4 {[%clk 0:01:23]} 38. Kf2 {[%clk 0:00:42]}  Rb7 {[%clk 0:01:21]} 39. g4 {[%clk 0:00:41]}  Bc7 {[%clk 0:01:19]} 40. Rxh3 {[%clk 0:00:41]}  a5 {[%clk 0:01:18]} 41. e4 {[%clk 0:00:39]}  a4 {[%clk 0:01:16]} 42. Ke2 {[%clk 0:00:39]}  b3 {[%clk 0:01:12]} 43. Rc3 {[%clk 0:00:33]}  Ba5 {[%clk 0:01:12]} 44. Rc4 {[%clk 0:00:29]}  a3 {[%clk 0:01:10]} 45. Ra4 {[%clk 0:00:26]}  a2 {[%clk 0:01:08]} 46. Rd1 {[%clk 0:00:22]}  Bc3 {[%clk 0:01:06]} 47. d5 {[%clk 0:00:16]}  b2 {[%clk 0:00:41]} 48. Rxa2 {[%clk 0:00:15]}  b1=Q {[%clk 0:00:41]} 49. Rxb1 {[%clk 0:00:16]}  Rxb1 {[%clk 0:00:41]} 50. Kd3 {[%clk 0:00:14]}  Be5 {[%clk 0:00:39]} 51. Ra8+ {[%clk 0:00:13]}  Kf7 {[%clk 0:00:38]} 52. Ra6 {[%clk 0:00:12]}  Bxh2 {[%clk 0:00:34]} 53. Rh6 {[%clk 0:00:08]}  Rd1+ {[%clk 0:00:32]} 54. Ke2 {[%clk 0:00:05]}  Rd4 {[%clk 0:00:30]} 55. Rxh2 {[%clk 0:00:04]}  Rxe4+ {[%clk 0:00:30]} 56. Kf3 {[%clk 0:00:04]}  Rd4 {[%clk 0:00:30]} 57. Rh5 {[%clk 0:00:04]}  Kg6 {[%clk 0:00:29]} 58. Rf5 {[%clk 0:00:05]}  Rd1 {[%clk 0:00:28]} 59. Ke3 {[%clk 0:00:05]}  Rg1 {[%clk 0:00:27]} 60. Kf4 {[%clk 0:00:05]}  Rf1+ {[%clk 0:00:26]} 61. Ke5 {[%clk 0:00:05]}  Rg1 {[%clk 0:00:25]} 62. Rf6+ {[%clk 0:00:05]}  Kg7 {[%clk 0:00:24]} 63. Rf2 {[%clk 0:00:05]}  Rxg4 {[%clk 0:00:23]} 64. d6 {[%clk 0:00:05]}  Rg1 {[%clk 0:00:22]} 65. Ke6 {[%clk 0:00:05]}  Re1+ {[%clk 0:00:21]} 66. Kd7 {[%clk 0:00:04]}  Kg6 {[%clk 0:00:20]} 0-1


[Site "https://www.chess.com"]

[Event "Titled Tuesday Blitz November 15 Late 2022"]
[White "vjecspec"]
[Black "Jobava, Baadur"]
[BlackFideId "13601520"]
[WhiteElo "2525"]
[BlackElo "2582"]
[Result "0-1"]
[Round "03"]
[TimeControl "180+1"]
[Date "2022.11.16"]
[WhiteClock "0:01:27"]
[BlackClock "0:00:57"]

1. e4 {[%clk 0:03:00]}  c6 {[%clk 0:02:24]} 2. Nf3 {[%clk 0:03:00]}  d5 {[%clk 0:02:24]} 3. d3 {[%clk 0:03:01]}  dxe4 {[%clk 0:02:23]} 4. dxe4 {[%clk 0:03:02]}  Qxd1+ {[%clk 0:02:24]} 5. Kxd1 {[%clk 0:03:02]}  Nf6 {[%clk 0:02:25]} 6. Nfd2 {[%clk 0:03:02]}  e5 {[%clk 0:02:23]} 7. f3 {[%clk 0:03:02]}  Be6 {[%clk 0:02:21]} 8. Bc4 {[%clk 0:03:01]}  Bxc4 {[%clk 0:02:21]} 9. Nxc4 {[%clk 0:03:02]}  Nbd7 {[%clk 0:02:21]} 10. a4 {[%clk 0:02:58]}  Bc5 {[%clk 0:02:20]} 11. Ke2 {[%clk 0:02:58]}  Ke7 {[%clk 0:02:20]} 12. c3 {[%clk 0:02:56]}  Ke6 {[%clk 0:02:09]} 13. b4 {[%clk 0:02:52]}  Be7 {[%clk 0:02:09]} 14. Be3 {[%clk 0:02:52]}  Rhd8 {[%clk 0:02:04]} 15. Nbd2 {[%clk 0:02:44]}  b6 {[%clk 0:02:03]} 16. Rhd1 {[%clk 0:02:38]}  Ne8 {[%clk 0:02:03]} 17. a5 {[%clk 0:02:35]}  b5 {[%clk 0:02:02]} 18. Nb2 {[%clk 0:02:35]}  c5 {[%clk 0:01:54]} 19. Nd3 {[%clk 0:02:32]}  c4 {[%clk 0:01:54]} 20. Nf2 {[%clk 0:02:30]}  a6 {[%clk 0:01:51]} 21. g4 {[%clk 0:02:25]}  g6 {[%clk 0:01:50]} 22. g5 {[%clk 0:02:23]}  f5 {[%clk 0:01:47]} 23. gxf6 {[%clk 0:02:22]}  Nexf6 {[%clk 0:01:48]} 24. Nf1 {[%clk 0:02:19]}  Nh5 {[%clk 0:01:43]} 25. Ng3 {[%clk 0:02:19]}  Nf4+ {[%clk 0:01:43]} 26. Bxf4 {[%clk 0:02:20]}  exf4 {[%clk 0:01:44]} 27. Nf1 {[%clk 0:02:20]}  Ne5 {[%clk 0:01:38]} 28. h3 {[%clk 0:02:15]}  h5 {[%clk 0:01:37]} 29. Rd4 {[%clk 0:02:11]}  Nc6 {[%clk 0:01:28]} 30. Rdd1 {[%clk 0:02:03]}  Bf6 {[%clk 0:01:21]} 31. Rxd8 {[%clk 0:01:56]}  Rxd8 {[%clk 0:01:20]} 32. Rc1 {[%clk 0:01:57]}  Bh4 {[%clk 0:01:11]} 33. Rd1 {[%clk 0:01:47]}  Rxd1 {[%clk 0:01:09]} 34. Nxd1 {[%clk 0:01:47]}  Ne5 {[%clk 0:01:06]} 35. Nb2 {[%clk 0:01:42]}  Bf6 {[%clk 0:01:03]} 36. Nd1 {[%clk 0:01:40]}  Nd3 {[%clk 0:01:01]} 37. Nd2 {[%clk 0:01:39]}  Be5 {[%clk 0:01:00]} 38. Nb1 {[%clk 0:01:37]}  Kf6 {[%clk 0:00:58]} 39. Kf1 {[%clk 0:01:31]}  Kg5 {[%clk 0:00:58]} 40. Kg2 {[%clk 0:01:31]}  Kh4 {[%clk 0:00:58]} 41. Nf2 {[%clk 0:01:27]}  Nxf2 {[%clk 0:00:57]} 42. Kxf2 {[%clk 0:01:27]}  Kxh3 {[%clk 0:00:57]} 0-1


[Site "https://www.chess.com"]